bitfinex-derivatives/quotes_BTCF0:USTF0_20260119
["timestamp","ask_amount","ask_price","bid_price","bid_amount"]
[1768806183002,0.02357096,92677.0,92660.0,0.00016192]
[1768806183207,0.09716,92678.0,92660.0,0.00016192]
[1768806183506,0.02357228,92677.0,92661.0,0.010797]
[1768806183704,0.09716,92678.0,92661.0,0.010797]
[1768806183905,0.02357228,92677.0,92661.0,0.010797]
[1768806184093,0.09716,92678.0,92663.0,0.010797]
[1768806184299,0.02357241,92677.0,92663.0,0.010797]
[1768806184493,0.09716,92678.0,92663.0,0.010797]
[1768806184697,0.02357373,92677.0,92666.0,0.010797]
[1768806184899,0.00237366,92684.0,92671.0,0.06914873]
[1768806185099,0.02357261,92683.0,92671.0,0.06914873]
[1768806185306,0.00237366,92684.0,92671.0,0.06914873]
[1768806185500,0.00237366,92684.0,92672.0,0.06914873]
[1768806186415,0.00237366,92684.0,92673.0,0.06914873]
[1768806187611,0.14549941,92690.0,92677.0,0.06914873]
[1768806187806,0.14549941,92690.0,92677.0,0.07994373]
[1768806188005,0.09716,92691.0,92677.0,0.06914873]
[1768806188201,0.14549941,92690.0,92677.0,0.04465962]
[1768806188606,0.14549941,92690.0,92672.0,0.03528511]
[1768806190015,0.04173353,92681.0,92661.0,0.01101287]
[1768806190203,0.14549941,92680.0,92669.0,0.010796]
[1768806190405,0.14549941,92680.0,92664.0,0.06914873]
[1768806190609,0.14549941,92680.0,92669.0,0.010796]
[1768806191627,0.15629341,92690.0,92671.0,0.07994473]
[1768806191818,0.15629341,92690.0,92672.0,0.04465962]
[1768806192814,0.19802694,92690.0,92671.0,0.010796]
[1768806193117,0.14549941,92681.0,92671.0,0.010796]
[1768806193321,0.14549941,92681.0,92668.0,0.02448911]
[1768806193529,0.19802694,92690.0,92671.0,0.010796]
[1768806193720,0.14549941,92680.0,92671.0,0.010796]
[1768806194424,0.05252753,92690.0,92671.0,0.010796]
[1768806194616,0.14549941,92681.0,92671.0,0.010796]
[1768806196520,0.19802694,92690.0,92671.0,0.010796]
[1768806198425,0.14549941,92681.0,92671.0,0.010796]
[1768806199527,0.18723294,92690.0,92676.0,0.010796]
[1768806200728,0.04173353,92690.0,92673.0,0.010796]
[1768806200930,0.18723294,92690.0,92673.0,0.010796]
[1768806201334,0.04173353,92690.0,92671.0,0.04465962]
[1768806201536,0.18723294,92690.0,92671.0,0.04465962]
[1768806202027,0.18723294,92690.0,92672.0,0.010796]
[1768806202422,0.14549941,92690.0,92672.0,0.07994473]
[1768806202730,0.14549941,92690.0,92672.0,0.05545562]
[1768806204339,0.14544941,92690.0,92672.0,0.05545562]
[1768806204738,0.14544941,92690.0,92672.0,0.010796]
[1768806207242,0.14539941,92690.0,92672.0,0.010796]
[1768806207630,0.010794,92691.0,92672.0,0.010796]
[1768806207835,0.14549941,92690.0,92672.0,0.010796]
[1768806208844,0.05710622,92689.0,92668.0,0.107957]
[1768806209051,0.010795,92686.0,92668.0,0.107957]
[1768806209650,0.010795,92684.0,92668.0,0.09716]
[1768806209850,0.010794,92687.0,92668.0,0.1688949]
[1768806210151,0.010794,92687.0,92668.0,0.14704408]
[1768806210538,0.010794,92687.0,92669.0,0.010796]
[1768806213547,0.05710622,92687.0,92669.0,0.010796]
[1768806214147,0.04631222,92685.0,92664.0,0.00237417]
[1768806214446,0.04631222,92685.0,92669.0,0.010796]
[1768806214848,0.05710722,92685.0,92668.0,0.010797]
[1768806215053,0.010795,92683.0,92665.0,0.09716]
[1768806215247,0.010795,92683.0,92666.0,0.010797]
[1768806217252,0.04631222,92685.0,92669.0,0.010796]
[1768806217454,0.04631222,92685.0,92671.0,0.010796]
[1768806217644,0.04631222,92685.0,92665.0,0.09716]
[1768806217844,0.04631222,92685.0,92665.0,0.1688949]
[1768806218753,0.04631222,92685.0,92670.0,0.010796]
[1768806221150,0.0618651,92683.0,92667.0,0.09716]
[1768806225556,0.0618651,92683.0,92667.0,0.107957]
[1768806225757,0.0510701,92683.0,92667.0,0.107957]
[1768806227457,0.0510701,92683.0,92667.0,0.09716]
[1768806227763,0.0510701,92683.0,92664.0,0.00237417]
[1768806228555,0.010795,92679.0,92664.0,0.00237417]
[1768806230553,0.0510701,92679.0,92660.0,0.00016192]
[1768806230754,0.0510701,92677.0,92660.0,0.00016192]
[1768806231262,0.010796,92672.0,92660.0,0.00016192]
[1768806231859,0.0618661,92672.0,92653.0,0.0505924]
[1768806232062,0.0618661,92672.0,92652.0,0.09716]
[1768806232262,0.0618661,92672.0,92654.0,0.010798]
[1768806232664,0.0510701,92672.0,92652.0,0.07595168]
[1768806233064,0.0510701,92672.0,92653.0,0.06518213]
[1768806234264,0.00016192,92675.0,92656.0,0.010798]
[1768806234464,0.00016192,92675.0,92659.0,0.010798]
[1768806236569,0.00016192,92675.0,92656.0,0.010798]
[1768806237262,0.00016192,92675.0,92665.0,0.00147141]
[1768806238374,0.00016192,92675.0,92670.0,0.00147141]
[1768806238670,0.00016192,92675.0,92659.0,0.010798]
[1768806238973,0.00016192,92675.0,92656.0,0.02893555]
[1768806239567,0.00016192,92675.0,92656.0,0.07598013]
[1768806240172,0.01095792,92675.0,92656.0,0.07598013]
[1768806241073,0.010796,92673.0,92656.0,0.06518213]
[1768806243773,0.010796,92673.0,92656.0,0.07598013]
[1768806243972,0.010796,92673.0,92657.0,0.06518213]
[1768806245274,0.00016192,92675.0,92658.0,0.010798]
[1768806245474,0.00016192,92675.0,92658.0,0.07598013]
[1768806246073,0.010796,92674.0,92658.0,0.06518213]
[1768806246572,0.010797,92670.0,92658.0,0.04704458]
[1768806246779,0.00016192,92675.0,92654.0,0.01813755]
[1768806246780,0.010797,92668.0,92654.0,0.01813755]
[1768806247669,0.010798,92660.0,92649.0,0.00237457]
[1768806247963,0.010798,92660.0,92642.0,0.02893755]
[1768806248977,0.05978196,92660.0,92642.0,0.0108]
[1768806249674,0.04898396,92660.0,92640.0,0.01813755]
[1768806249871,0.04898396,92660.0,92638.0,0.0108]
[1768806250174,0.010798,92656.0,92636.0,0.06518213]
[1768806250367,0.04898396,92660.0,92636.0,0.06518213]
[1768806250568,0.010798,92654.0,92636.0,0.01813755]
[1768806251272,0.04898396,92655.0,92636.0,0.01813755]
[1768806251481,0.00016192,92654.0,92636.0,0.01813755]
[1768806251874,0.00016192,92654.0,92636.0,0.06518213]
[1768806252078,0.00016192,92654.0,92637.0,0.01813755]
[1768806252577,0.00016192,92654.0,92638.0,0.01813755]
[1768806252773,0.05978296,92651.0,92630.0,0.06518213]
[1768806252982,0.05978296,92651.0,92631.0,0.02893855]
[1768806253171,0.010799,92646.0,92631.0,0.01813755]
[1768806253577,0.010799,92649.0,92631.0,0.01813755]
[1768806254179,0.010799,92647.0,92631.0,0.01813755]
[1768806254570,0.010799,92647.0,92630.0,0.04704458]
[1768806256079,0.010799,92645.0,92630.0,0.04704458]
[1768806256380,0.010799,92645.0,92630.0,0.06518213]
[1768806256881,0.010799,92645.0,92631.0,0.01813755]
[1768806257175,0.00016192,92654.0,92635.0,0.01813755]
[1768806257379,0.00016192,92654.0,92636.0,0.04704458]
[1768806257580,0.010798,92653.0,92639.0,0.01813755]
[1768806261281,0.010799,92650.0,92639.0,0.01813755]
[1768806261481,0.01095992,92654.0,92638.0,0.04704458]
[1768806262283,0.01095992,92654.0,92638.0,0.06518213]
[1768806262587,0.01095992,92654.0,92639.0,0.01813755]
[1768806262979,0.01095992,92654.0,92640.0,0.01699392]
[1768806263179,0.00016192,92654.0,92640.0,0.01699392]
[1768806263380,0.00016192,92654.0,92642.0,0.06470029]
[1768806263588,0.00016192,92654.0,92643.0,0.06470029]
[1768806263887,0.00016192,92654.0,92645.0,0.01699392]
[1768806272581,0.00016192,92654.0,92645.0,0.06470029]
[1768806272787,0.08059295,92655.0,92648.0,0.01699392]
[1768806272984,0.0640259,92655.0,92648.0,0.06470029]
[1768806273187,0.0308918,92655.0,92649.0,0.01699392]
[1768806274990,0.0308918,92655.0,92648.0,0.04770637]
[1768806280096,0.0308918,92655.0,92642.0,0.05792069]
[1768806280491,0.0308918,92655.0,92641.0,0.0108]
[1768806280492,0.0308918,92655.0,92643.0,0.05792069]
[1768806281396,0.14554174,92660.0,92645.0,0.05792069]
[1768806281596,0.02352279,92659.0,92646.0,0.010799]
[1768806281797,0.02352279,92658.0,92645.0,0.05792069]
[1768806281997,0.02352279,92657.0,92645.0,0.05792069]
[1768806282198,0.02352279,92656.0,92645.0,0.05792069]
[1768806282402,0.010797,92663.0,92645.0,0.05792069]
[1768806282586,0.02352438,92662.0,92645.0,0.05792069]
[1768806282790,0.02352438,92661.0,92645.0,0.05792069]
[1768806282991,0.02352438,92660.0,92645.0,0.05792069]
[1768806283300,0.02352438,92659.0,92645.0,0.05792069]
[1768806283501,0.02352438,92658.0,92645.0,0.05792069]
[1768806283700,0.02352438,92657.0,92645.0,0.05792069]
[1768806283903,0.02352438,92656.0,92645.0,0.05792069]
[1768806284101,0.010797,92663.0,92645.0,0.05792069]
[1768806284302,0.02352412,92662.0,92645.0,0.05792069]
[1768806284505,0.02352412,92661.0,92645.0,0.05792069]
[1768806284801,0.02352412,92660.0,92645.0,0.05792069]
[1768806285006,0.02352412,92659.0,92645.0,0.05792069]
[1768806285197,0.02352412,92658.0,92645.0,0.05792069]
[1768806285400,0.02352412,92657.0,92645.0,0.05792069]
[1768806285598,0.02352412,92656.0,92645.0,0.05792069]
[1768806285801,0.0972,92660.0,92645.0,0.05792069]
[1768806285996,0.02352438,92659.0,92645.0,0.05792069]
[1768806286204,0.02352438,92658.0,92646.0,0.02691787]
[1768806286505,0.02352438,92657.0,92646.0,0.02691787]
[1768806286707,0.02352438,92656.0,92646.0,0.02691787]
[1768806286906,0.0972,92660.0,92646.0,0.02691787]
[1768806287107,0.02352492,92659.0,92646.0,0.02691787]
[1768806287315,0.02352492,92658.0,92646.0,0.02691787]
[1768806287609,0.02352492,92657.0,92646.0,0.02691787]
[1768806287808,0.0972,92660.0,92646.0,0.02691787]
[1768806288011,0.02352555,92659.0,92646.0,0.06871969]
[1768806288204,0.02352555,92658.0,92646.0,0.06871969]
[1768806288504,0.0972,92660.0,92646.0,0.06871969]
[1768806288505,0.02352555,92657.0,92646.0,0.06871969]
[1768806288704,0.02352555,92656.0,92647.0,0.01611887]
[1768806288904,0.0972,92660.0,92647.0,0.01611887]
[1768806289105,0.02352622,92659.0,92647.0,0.01611887]
[1768806289310,0.02352622,92658.0,92647.0,0.01611887]
[1768806289509,0.02352622,92657.0,92647.0,0.01611887]
[1768806289709,0.02352622,92656.0,92647.0,0.01611887]
[1768806289905,0.0972,92660.0,92647.0,0.01611887]
[1768806290108,0.02352706,92659.0,92647.0,0.01611887]
[1768806290305,0.02352706,92658.0,92647.0,0.01611887]
[1768806290605,0.02352706,92657.0,92647.0,0.01611887]
[1768806290805,0.02352706,92656.0,92647.0,0.01611887]
[1768806291006,0.0972,92660.0,92647.0,0.01611887]
[1768806291309,0.02352814,92659.0,92647.0,0.01611887]
[1768806291508,0.02352814,92658.0,92647.0,0.01611887]
[1768806291698,0.02352814,92657.0,92647.0,0.01611887]
[1768806291900,0.02352814,92656.0,92647.0,0.01611887]
[1768806292197,0.0972,92660.0,92647.0,0.01611887]
[1768806292400,0.02353135,92659.0,92647.0,0.01611887]
[1768806292596,0.02353135,92658.0,92647.0,0.01611887]
[1768806292801,0.02353135,92657.0,92647.0,0.01611887]
[1768806293004,0.02353135,92656.0,92647.0,0.01611887]
[1768806293209,0.02353135,92655.0,92647.0,0.01611887]
[1768806293510,0.0972,92660.0,92647.0,0.01611887]
[1768806293709,0.02353227,92659.0,92647.0,0.01611887]
[1768806293897,0.02353227,92658.0,92647.0,0.01611887]
[1768806294099,0.02353227,92657.0,92647.0,0.01611887]
[1768806294296,0.02353227,92656.0,92647.0,0.01611887]
[1768806294496,0.02353227,92655.0,92648.0,0.010799]
[1768806294699,0.0972,92660.0,92648.0,0.010799]
[1768806294904,0.02353247,92659.0,92650.0,0.010799]
[1768806295105,0.02353247,92658.0,92647.0,0.02691787]
[1768806295305,0.02353247,92657.0,92647.0,0.02691787]
[1768806295501,0.0972,92660.0,92647.0,0.02691787]
[1768806295706,0.02353036,92659.0,92647.0,0.02691787]
[1768806295907,0.02353036,92658.0,92647.0,0.02691787]
[1768806296108,0.02353036,92657.0,92647.0,0.01611887]
[1768806296309,0.24274174,92660.0,92647.0,0.01611887]
[1768806296509,0.02353006,92659.0,92647.0,0.01611887]
[1768806296710,0.02353006,92658.0,92647.0,0.01611887]
[1768806296910,0.02353006,92657.0,92647.0,0.01611887]
[1768806297212,0.0972,92660.0,92647.0,0.01611887]
[1768806297409,0.02352986,92659.0,92647.0,0.01611887]
[1768806297609,0.02352986,92658.0,92647.0,0.01611887]
[1768806297810,0.02352986,92657.0,92647.0,0.01611887]
[1768806298010,0.0972,92660.0,92647.0,0.01611887]
[1768806298210,0.02352986,92659.0,92647.0,0.01611887]
[1768806298411,0.02352986,92658.0,92646.0,0.05260082]
[1768806298612,0.02352986,92657.0,92646.0,0.05260082]
[1768806298808,0.0972,92660.0,92646.0,0.05260082]
[1768806299107,0.02352968,92659.0,92646.0,0.05260082]
[1768806299306,0.02352968,92658.0,92648.0,0.010799]
[1768806299507,0.02352968,92657.0,92648.0,0.010799]
[1768806299703,0.0972,92660.0,92648.0,0.010799]
[1768806299907,0.02352958,92659.0,92648.0,0.010799]
[1768806300106,0.02352958,92658.0,92648.0,0.010799]
[1768806300315,0.0972,92660.0,92650.0,0.010799]
[1768806300509,0.02352978,92659.0,92650.0,0.010799]
[1768806300710,0.02352978,92658.0,92650.0,0.010799]
[1768806300912,0.0972,92660.0,92650.0,0.010799]
[1768806301112,0.02352978,92659.0,92650.0,0.010799]
[1768806301312,0.02352978,92658.0,92648.0,0.010799]
[1768806301617,0.0972,92660.0,92641.0,0.0108]
[1768806301618,0.01134672,92659.0,92641.0,0.0108]
[1768806301812,0.02353066,92658.0,92643.0,0.010799]
[1768806302115,0.02353066,92658.0,92649.0,0.06066081]
[1768806302321,0.02353066,92657.0,92649.0,0.04986181]
[1768806302517,0.0972,92660.0,92649.0,0.03928245]
[1768806302713,0.02345129,92659.0,92649.0,0.03928245]
[1768806302915,0.02345129,92658.0,92649.0,0.03928245]
[1768806303109,0.02345129,92657.0,92650.0,0.010799]
[1768806303314,0.0972,92660.0,92650.0,0.02137836]
[1768806303514,0.02345106,92659.0,92650.0,0.1669201]
[1768806303713,0.02345106,92658.0,92650.0,0.1669201]
[1768806303913,0.02345106,92657.0,92650.0,0.1669201]
[1768806304114,0.00237417,92664.0,92650.0,0.1669201]
[1768806304316,0.02345105,92663.0,92650.0,0.1561211]
[1768806304519,0.02345105,92662.0,92650.0,0.1561211]
[1768806304713,0.02345105,92661.0,92650.0,0.1561211]
[1768806304914,0.02345105,92660.0,92650.0,0.1561211]
[1768806305115,0.02345105,92659.0,92650.0,0.01057936]
[1768806305419,0.02345105,92658.0,92650.0,0.01057936]
[1768806305617,0.02345105,92657.0,92650.0,0.01057936]
[1768806305817,0.00237417,92664.0,92650.0,0.01057936]
[1768806306117,0.02345076,92663.0,92650.0,0.01057936]
[1768806306316,0.02345076,92662.0,92650.0,0.01057936]
[1768806306517,0.02345076,92661.0,92650.0,0.01057936]
[1768806306717,0.02345076,92660.0,92650.0,0.01057936]
[1768806306914,0.02345076,92659.0,92650.0,0.01057936]
[1768806307114,0.02345076,92658.0,92650.0,0.01057936]
[1768806307314,0.00237417,92664.0,92650.0,0.01057936]
[1768806307514,0.02345055,92663.0,92650.0,0.01057936]
[1768806307812,0.02345055,92662.0,92650.0,0.01057936]
[1768806308017,0.02345055,92661.0,92650.0,0.01057936]
[1768806308217,0.02345055,92660.0,92650.0,0.01057936]
[1768806308416,0.02345055,92659.0,92650.0,0.01057936]
[1768806308617,0.02345055,92658.0,92650.0,0.01057936]
[1768806308817,0.02345055,92657.0,92650.0,0.01057936]
[1768806309008,0.00237417,92664.0,92650.0,0.01057936]
[1768806309210,0.0234505,92663.0,92650.0,0.01057936]
[1768806309411,0.0234505,92662.0,92650.0,0.01057936]
[1768806309613,0.0234505,92661.0,92650.0,0.01057936]
[1768806309822,0.0234505,92660.0,92649.0,0.03928245]
[1768806310019,0.0234505,92660.0,92646.0,0.01057936]
[1768806310020,0.0234505,92659.0,92646.0,0.01057936]
[1768806310216,0.14554174,92660.0,92642.0,0.0108]
[1768806310217,0.0234505,92658.0,92642.0,0.0108]
[1768806310405,0.01134672,92656.0,92640.0,0.00016192]
[1768806310613,0.01134672,92656.0,92641.0,0.0972]
[1768806312020,0.14554174,92651.0,92640.0,0.00016192]
[1768806312318,0.01134672,92655.0,92640.0,0.00016192]
[1768806312518,0.01134672,92655.0,92640.0,0.01096192]
[1768806315220,0.01134672,92655.0,92640.0,0.00016192]
[1768806315418,0.04891258,92655.0,92640.0,0.00016192]
[1768806316020,0.01134672,92654.0,92640.0,0.00016192]
[1768806316624,0.01134672,92653.0,92640.0,0.00016192]
[1768806317013,0.14554174,92650.0,92640.0,0.00016192]
[1768806317218,0.01134672,92653.0,92640.0,0.00016192]
[1768806318825,0.010799,92652.0,92640.0,0.00016192]
[1768806319025,0.01134672,92652.0,92640.0,0.00016192]
[1768806321425,0.010799,92651.0,92640.0,0.00016192]
[1768806322027,0.01134672,92652.0,92640.0,0.00016192]
[1768806322726,0.02214572,92652.0,92640.0,0.00016192]
[1768806322927,0.00972765,92651.0,92640.0,0.00016192]
[1768806324028,0.00972765,92651.0,92640.0,0.01096192]
[1768806325830,0.04729351,92655.0,92640.0,0.01096192]
[1768806326724,0.04729351,92655.0,92642.0,0.0108]
[1768806327030,0.0972,92657.0,92644.0,0.010799]
[1768806327230,0.02344965,92656.0,92644.0,0.010799]
[1768806327431,0.0972,92657.0,92644.0,0.010799]
[1768806327629,0.02344922,92656.0,92644.0,0.010799]
[1768806327930,0.0972,92657.0,92644.0,0.010799]
[1768806328129,0.02344925,92656.0,92644.0,0.010799]
[1768806328331,0.0972,92657.0,92644.0,0.010799]
[1768806328533,0.02344922,92656.0,92644.0,0.02010595]
[1768806328724,0.0972,92657.0,92644.0,0.02010595]
[1768806328926,0.02344917,92656.0,92646.0,0.010799]
[1768806329124,0.0972,92657.0,92646.0,0.010799]
[1768806329831,0.02344936,92656.0,92646.0,0.010799]
[1768806330133,0.0972,92657.0,92646.0,0.010799]
[1768806330431,0.0234495,92656.0,92646.0,0.010799]
[1768806330633,0.0972,92657.0,92644.0,0.00930695]
[1768806330831,0.02344949,92656.0,92644.0,0.00930695]
[1768806331036,0.0972,92657.0,92644.0,0.00930695]
[1768806331230,0.02344949,92656.0,92644.0,0.00930695]
[1768806331428,0.0972,92657.0,92644.0,0.00930695]
[1768806331628,0.02344993,92656.0,92644.0,0.00930695]
[1768806331829,0.0972,92657.0,92644.0,0.00930695]
[1768806333335,0.0972,92657.0,92644.0,0.04121477]
[1768806334742,0.02327206,92656.0,92644.0,0.04121477]
[1768806335043,0.0972,92657.0,92644.0,0.04121477]
[1768806335231,0.02327206,92656.0,92644.0,0.04121477]
[1768806335434,0.0972,92657.0,92644.0,0.04121477]
[1768806335435,0.0972,92657.0,92645.0,0.010799]
[1768806336642,0.0972,92657.0,92647.0,0.010799]
[1768806338146,0.02327317,92656.0,92647.0,0.010799]
[1768806338345,0.0972,92657.0,92647.0,0.010799]
[1768806339848,0.02327406,92656.0,92647.0,0.010799]
[1768806340055,0.0972,92657.0,92644.0,0.04121477]
[1768806340253,0.02327426,92656.0,92644.0,0.04121477]
[1768806340453,0.0972,92657.0,92644.0,0.04121477]
[1768806340654,0.02327426,92656.0,92644.0,0.04121477]
[1768806340956,0.0972,92657.0,92644.0,0.04121477]
[1768806341153,0.02327426,92656.0,92644.0,0.04121477]
[1768806341355,0.0972,92657.0,92644.0,0.04121477]
[1768806341656,0.02327427,92656.0,92644.0,0.05201377]
[1768806341956,0.0972,92657.0,92644.0,0.05201377]
[1768806342157,0.02327427,92656.0,92644.0,0.05201377]
[1768806342356,0.0972,92657.0,92644.0,0.05201377]
[1768806342651,0.02327419,92656.0,92644.0,0.05201377]
[1768806342957,0.0972,92657.0,92644.0,0.05201377]
[1768806343959,0.0972,92657.0,92644.0,0.010799]
[1768806344556,0.00945812,92660.0,92644.0,0.010799]
[1768806344761,0.02327372,92659.0,92644.0,0.010799]
[1768806345061,0.02327372,92658.0,92644.0,0.010799]
[1768806345252,0.02327372,92657.0,92644.0,0.010799]
[1768806345452,0.00945812,92660.0,92644.0,0.010799]
[1768806345653,0.02327355,92659.0,92644.0,0.010799]
[1768806345854,0.02327355,92658.0,92644.0,0.010799]
[1768806346053,0.02327355,92657.0,92641.0,0.05119976]
[1768806346261,0.00945812,92660.0,92643.0,0.010799]
[1768806346462,0.02327344,92659.0,92643.0,0.010799]
[1768806346661,0.02327344,92658.0,92643.0,0.010799]
[1768806346861,0.02327344,92657.0,92643.0,0.010799]
[1768806347164,0.00945812,92660.0,92643.0,0.010799]
[1768806347352,0.02327345,92659.0,92643.0,0.010799]
[1768806347552,0.02327345,92658.0,92643.0,0.010799]
[1768806347854,0.02327345,92657.0,92645.0,0.010799]
[1768806348152,0.00945812,92660.0,92645.0,0.010799]
[1768806348351,0.02327339,92659.0,92645.0,0.010799]
[1768806348560,0.02327339,92658.0,92645.0,0.010799]
[1768806348760,0.02327339,92657.0,92645.0,0.010799]
[1768806348953,0.00945812,92660.0,92645.0,0.010799]
[1768806349155,0.02327339,92659.0,92645.0,0.010799]
[1768806349456,0.02327339,92658.0,92645.0,0.010799]
[1768806349659,0.02327339,92657.0,92645.0,0.010799]
[1768806349956,0.00945812,92660.0,92645.0,0.010799]
[1768806350156,0.02327339,92659.0,92645.0,0.010799]
[1768806350358,0.02327339,92658.0,92645.0,0.010799]
[1768806350658,0.02327339,92657.0,92645.0,0.010799]
[1768806350868,0.00945812,92660.0,92645.0,0.010799]
[1768806351065,0.02327345,92659.0,92645.0,0.010799]
[1768806351273,0.02327345,92658.0,92645.0,0.010799]
[1768806351469,0.02327345,92657.0,92647.0,0.010799]
[1768806351668,0.00945812,92660.0,92647.0,0.010799]
[1768806351864,0.02327344,92659.0,92647.0,0.010799]
[1768806352070,0.02327344,92658.0,92644.0,0.010799]
[1768806352273,0.02327344,92657.0,92644.0,0.010799]
[1768806352571,0.00945812,92660.0,92644.0,0.010799]
[1768806352871,0.02327358,92659.0,92644.0,0.010799]
[1768806353071,0.02327358,92658.0,92644.0,0.010799]
[1768806353373,0.02327358,92657.0,92644.0,0.010799]
[1768806353575,0.00945812,92660.0,92644.0,0.010799]
[1768806353776,0.02327376,92659.0,92646.0,0.010799]
[1768806353975,0.02327376,92658.0,92646.0,0.010799]
[1768806354175,0.02327376,92657.0,92646.0,0.010799]
[1768806354475,0.00945812,92660.0,92646.0,0.010799]
[1768806354675,0.02327398,92659.0,92646.0,0.010799]
[1768806354875,0.02327398,92658.0,92646.0,0.010799]
[1768806355074,0.02327398,92657.0,92646.0,0.010799]
[1768806355275,0.00945812,92660.0,92646.0,0.010799]
[1768806355478,0.0232746,92659.0,92646.0,0.010799]
[1768806355775,0.0232746,92658.0,92646.0,0.010799]
[1768806355976,0.0232746,92657.0,92646.0,0.010799]
[1768806356277,0.00945812,92660.0,92646.0,0.010799]
[1768806356477,0.02327523,92659.0,92646.0,0.010799]
[1768806356776,0.02327523,92658.0,92646.0,0.010799]
[1768806356975,0.02327523,92657.0,92646.0,0.010799]
[1768806357177,0.00945812,92660.0,92646.0,0.010799]
[1768806357477,0.02327536,92659.0,92646.0,0.010799]
[1768806357675,0.02327536,92658.0,92646.0,0.010799]
[1768806357878,0.02327536,92657.0,92646.0,0.010799]
[1768806358177,0.00945812,92660.0,92646.0,0.010799]
[1768806358377,0.02327557,92659.0,92646.0,0.010799]
[1768806358588,0.02327557,92658.0,92646.0,0.010799]
[1768806358779,0.02327557,92657.0,92646.0,0.010799]
[1768806358980,0.00945812,92660.0,92646.0,0.010799]
[1768806359178,0.02327557,92659.0,92646.0,0.010799]
[1768806359379,0.02327557,92658.0,92646.0,0.010799]
[1768806359678,0.02327557,92657.0,92646.0,0.010799]
[1768806359875,0.00945812,92660.0,92646.0,0.010799]
[1768806360079,0.02327557,92659.0,92646.0,0.010799]
[1768806360279,0.02327557,92658.0,92646.0,0.010799]
[1768806360580,0.02327557,92657.0,92646.0,0.010799]
[1768806360780,0.00945812,92660.0,92646.0,0.010799]
[1768806360975,0.02327559,92659.0,92646.0,0.010799]
[1768806361176,0.02327559,92658.0,92646.0,0.010799]
[1768806361474,0.02327559,92657.0,92646.0,0.010799]
[1768806361670,0.00945812,92660.0,92646.0,0.010799]
[1768806361975,0.02327561,92659.0,92646.0,0.010799]
[1768806362174,0.02327561,92658.0,92646.0,0.010799]
[1768806362375,0.02327561,92657.0,92646.0,0.010799]
[1768806362680,0.00945812,92660.0,92646.0,0.010799]
[1768806362879,0.0232793,92659.0,92646.0,0.010799]
[1768806363179,0.0232793,92658.0,92646.0,0.010799]
[1768806363378,0.0232793,92657.0,92646.0,0.010799]
[1768806363571,0.00945812,92660.0,92646.0,0.010799]
[1768806363767,0.02327936,92659.0,92646.0,0.010799]
[1768806363965,0.02327936,92658.0,92646.0,0.010799]
[1768806364177,0.02327936,92657.0,92646.0,0.010799]
[1768806364378,0.00945812,92660.0,92646.0,0.010799]
[1768806364678,0.02327946,92659.0,92646.0,0.010799]
[1768806364878,0.02327946,92658.0,92646.0,0.010799]
[1768806365178,0.02327946,92657.0,92646.0,0.010799]
[1768806365381,0.00945812,92660.0,92646.0,0.010799]
[1768806365567,0.0232796,92659.0,92646.0,0.010799]
[1768806365771,0.0232796,92658.0,92646.0,0.010799]
[1768806365966,0.0232796,92657.0,92646.0,0.010799]
[1768806366175,0.00945812,92660.0,92646.0,0.010799]
[1768806366376,0.02327972,92659.0,92646.0,0.010799]
[1768806366576,0.02327972,92658.0,92646.0,0.010799]
[1768806366777,0.02327972,92657.0,92646.0,0.010799]
[1768806366978,0.00945812,92660.0,92646.0,0.010799]
[1768806367177,0.02327972,92659.0,92643.0,0.0108]
[1768806367377,0.02327972,92658.0,92643.0,0.0108]
[1768806367779,0.03281676,92658.0,92643.0,0.0108]
[1768806367982,0.02327972,92657.0,92643.0,0.0108]
[1768806368587,0.02327972,92657.0,92641.0,0.03064478]
[1768806368788,0.00953704,92656.0,92642.0,0.0108]
[1768806369490,0.00953704,92656.0,92643.0,0.0108]
[1768806369782,0.03043363,92659.0,92645.0,0.010799]
[1768806369987,0.02328016,92658.0,92645.0,0.010799]
[1768806370190,0.02328016,92657.0,92645.0,0.010799]
[1768806370389,0.03997067,92659.0,92645.0,0.010799]
[1768806370689,0.02328035,92658.0,92645.0,0.010799]
[1768806370990,0.02328035,92657.0,92645.0,0.010799]
[1768806371188,0.03997067,92659.0,92645.0,0.010799]
[1768806371385,0.02328059,92658.0,92645.0,0.010799]
[1768806371589,0.02328059,92657.0,92645.0,0.010799]
[1768806371790,0.03997067,92659.0,92645.0,0.010799]
[1768806371989,0.03281763,92658.0,92642.0,0.0108]
[1768806372191,0.03281763,92657.0,92642.0,0.0108]
[1768806372490,0.00953704,92657.0,92642.0,0.0108]
[1768806374796,0.00953704,92657.0,92640.0,0.00016192]
[1768806376396,0.00953704,92657.0,92644.0,0.010799]
[1768806378195,0.00953704,92656.0,92644.0,0.010799]
[1768806383198,0.00961131,92661.0,92640.0,0.00016192]
[1768806383398,0.02328168,92660.0,92640.0,0.00016192]
[1768806383601,0.02328168,92659.0,92640.0,0.02584754]
[1768806383789,0.02328168,92658.0,92640.0,0.02584754]
[1768806384085,0.02328168,92657.0,92640.0,0.03575609]
[1768806384397,0.00961131,92660.0,92648.0,0.010799]
[1768806384598,0.02328166,92659.0,92648.0,0.010799]
[1768806384798,0.02328166,92658.0,92648.0,0.010799]
[1768806385100,0.02328166,92657.0,92644.0,0.010799]
[1768806385296,0.00961131,92660.0,92644.0,0.010799]
[1768806385497,0.02328166,92659.0,92644.0,0.010799]
[1768806385699,0.02328166,92658.0,92644.0,0.010799]
[1768806385899,0.02328166,92657.0,92644.0,0.010799]
[1768806386100,0.00961131,92659.0,92644.0,0.010799]
[1768806386299,0.02328167,92658.0,92644.0,0.010799]
[1768806386499,0.02328167,92657.0,92644.0,0.010799]
[1768806386803,0.00961131,92659.0,92644.0,0.010799]
[1768806387104,0.00961131,92657.0,92641.0,0.0108]
[1768806387398,0.02328171,92656.0,92641.0,0.0108]
[1768806387703,0.00961131,92657.0,92641.0,0.0108]
[1768806388503,0.0232817,92656.0,92641.0,0.0108]
[1768806388704,0.02040931,92657.0,92641.0,0.0108]
[1768806388901,0.02328171,92656.0,92641.0,0.0108]
[1768806389101,0.00961131,92657.0,92641.0,0.0108]
[1768806389302,0.032893,92656.0,92641.0,0.0108]
[1768806389503,0.00961131,92656.0,92641.0,0.0108]
[1768806389806,0.02040931,92656.0,92640.0,0.00016192]
[1768806389998,0.00961131,92655.0,92640.0,0.00016192]
[1768806390198,0.00961131,92651.0,92640.0,0.00016192]
[1768806393709,0.010799,92650.0,92640.0,0.00016192]
[1768806393911,0.00961131,92657.0,92640.0,0.00016192]
[1768806394104,0.0234351,92656.0,92640.0,0.00016192]